bitfinex/quotes_ETHUSD_20250803
["timestamp","ask_amount","ask_price","bid_price","bid_amount"]
[1754229949564,0.001,3496.8,3496.7,0.9147]
[1754229951864,0.001,3496.8,3496.7,3.401]
[1754229952162,0.9196,3496.8,3496.7,7.771]
[1754229952975,0.001,3496.8,3496.7,7.771]
[1754229954793,0.001,3496.8,3496.7,8.6857]
[1754229956362,0.001,3496.8,3496.7,5.2847]
[1754229960366,0.001,3496.8,3496.7,5.7581]
[1754229960584,0.001,3496.8,3496.7,9.1591]
[1754229961097,0.001,3496.8,3496.7,8.6857]
[1754229961680,0.9328,3498.0,3496.7,11.6857]
[1754229961878,0.9328,3498.0,3496.8,4.3557]
[1754229962094,0.9328,3498.0,3497.0,0.1432]
[1754229962396,0.9328,3498.2,3497.1,5.3257]
[1754229962602,0.29495945,3499.4,3497.2,21.02943254]
[1754229962900,30.0,3498.6,3497.3,4.8703]
[1754229963100,0.9328,3498.5,3497.3,4.371]
[1754229963304,0.55,3499.3,3497.4,0.4993]
[1754229963475,3.55,3498.9,3497.5,4.371]
[1754229963670,3.0,3498.5,3497.6,0.4993]
[1754229963876,0.4594,3498.5,3497.7,4.8254]
[1754229964211,0.4594,3498.5,3497.8,0.4993]
[1754229964372,0.4594,3498.5,3497.9,4.37]
[1754229964569,0.4594,3498.5,3497.9,4.8693]
[1754229967487,0.4734,3498.6,3498.0,0.4993]
[1754229967893,0.4594,3498.7,3498.0,0.4993]
[1754229968794,0.9328,3498.7,3498.0,0.4993]
[1754229968989,0.4734,3498.7,3498.0,0.4993]
[1754229969188,0.4594,3498.6,3498.0,0.4993]
[1754229969392,0.4594,3498.6,3498.0,3.9003]
[1754229970621,0.4734,3498.5,3498.1,4.367]
[1754229970819,0.4734,3499.2,3498.1,4.367]
[1754229971036,0.4594,3498.7,3498.1,4.8663]
[1754229971395,0.4594,3498.7,3498.1,4.367]
[1754229971742,0.4734,3498.6,3498.1,4.367]
[1754229972045,0.4594,3498.5,3498.2,4.366]
[1754229972187,0.4734,3498.4,3498.2,4.366]
[1754229972736,0.9328,3498.3,3498.2,4.366]
[1754229974311,0.9328,3498.3,3497.6,3.401]
[1754229974534,0.55,3498.1,3497.0,6.876]
[1754229974739,30.0,3497.9,3497.1,4.366]
[1754229974949,0.02630117,3497.8,3497.1,4.366]
[1754229975130,0.9328,3497.8,3497.1,4.366]
[1754229975453,0.9328,3497.7,3497.1,4.366]
[1754229977137,0.9328,3497.7,3497.1,4.8653]
[1754229977921,3.0,3498.5,3497.2,0.4993]
[1754229978122,0.9328,3497.9,3497.2,0.4993]
[1754229978568,0.4734,3498.3,3497.2,0.4993]
[1754229978852,0.55,3498.1,3497.3,0.4554]
[1754229979053,30.4594,3498.3,3497.4,4.8653]
[1754229979367,0.9328,3498.3,3497.5,0.4993]
[1754229979550,0.9328,3498.3,3497.5,0.9547]
[1754229979721,0.9328,3498.3,3497.5,0.4554]
[1754229979927,0.9328,3498.3,3497.6,0.4993]
[1754229980328,0.9328,3498.6,3497.6,0.4993]
[1754229980525,0.4734,3498.6,3497.7,0.4554]
[1754229980724,0.9328,3498.5,3497.8,4.367]
[1754229980927,0.55,3498.3,3497.5,3.401]
[1754229981128,30.0,3498.1,3497.6,4.367]
[1754229981541,0.9328,3498.0,3497.6,4.367]
[1754229981823,0.9328,3497.9,3497.5,3.401]
[1754229982031,0.9328,3497.8,3497.6,4.368]
[1754229982228,0.9328,3497.7,3497.6,4.368]
[1754229985352,0.4594,3497.9,3497.6,4.368]
[1754229985690,30.0,3498.0,3497.7,0.4993]
[1754229985875,30.0,3498.0,3497.6,4.368]
[1754229986089,40.0,3498.0,3497.7,0.4993]
[1754229986255,30.0,3498.0,3497.7,0.4993]
[1754229986460,30.0,3498.1,3497.7,0.4993]
[1754229986671,0.001,3498.3,3497.6,4.39659103]
[1754229986987,0.001,3498.3,3497.8,0.4993]
[1754229987379,0.9338,3498.3,3497.9,0.4993]
[1754229987689,0.4744,3498.3,3498.0,4.367]
[1754229988014,0.9328,3498.2,3497.1,3.401]
[1754229988297,30.0,3498.0,3497.2,4.8663]
[1754229988487,0.9328,3497.9,3497.2,4.8663]
[1754229988664,30.0,3497.8,3497.2,4.8663]
[1754229989266,0.4865,3497.8,3497.2,4.8663]
[1754229989467,0.4865,3497.8,3497.2,4.367]
[1754229989468,0.4614,3497.7,3497.2,4.367]
[1754229989667,0.9479,3497.6,3497.2,4.367]
[1754229990360,0.4614,3497.9,3497.2,4.367]
[1754229990561,30.0,3497.8,3497.3,0.4959]
[1754229990758,0.9479,3497.7,3497.3,0.4959]
[1754229990983,10.0,3498.0,3497.4,4.367]
[1754229991295,0.9479,3497.6,3497.4,4.367]
[1754229991975,0.4865,3497.8,3497.4,4.367]
[1754229992203,30.0,3498.0,3497.4,4.367]
[1754229992368,0.4865,3497.7,3497.4,4.367]
[1754229992766,0.4865,3498.0,3497.4,4.367]
[1754229993068,0.55,3498.1,3497.5,0.4959]
[1754229993286,0.4875,3498.3,3497.5,0.4959]
[1754229993494,0.55,3498.1,3497.5,0.4959]
[1754229994198,0.4865,3498.1,3497.5,0.4959]
[1754229994402,1.0365,3498.1,3497.5,0.4959]
[1754229997698,1.4979,3498.1,3497.5,0.4959]
[1754229998165,0.9479,3498.0,3497.4,4.367]
[1754229998370,0.9479,3497.9,3497.4,4.367]
[1754229998597,0.9479,3497.8,3497.4,4.8629]
[1754229999099,1.4979,3498.1,3497.5,0.4959]
[1754229999981,0.4865,3498.0,3497.6,4.367]
[1754230000171,0.9479,3498.0,3497.6,4.367]
[1754230000370,0.9479,3497.9,3497.6,4.367]
[1754230000973,0.9479,3497.8,3497.6,4.367]
[1754230001570,1.4979,3498.1,3497.6,4.8629]
[1754230001767,1.4979,3498.1,3497.7,0.4959]
[1754230003302,0.001,3497.8,3497.7,0.4959]
[1754230003602,0.001,3497.8,3497.6,4.367]
[1754230003603,0.001,3497.8,3497.6,4.8629]
[1754230005120,0.001,3497.8,3497.7,4.366]
[1754230005621,0.001,3497.8,3497.7,7.366]
[1754230005787,0.9489,3497.8,3497.7,3.0]
[1754230006097,0.55,3497.7,3497.4,4.366]
[1754230006294,30.55,3497.5,3496.8,0.002]
[1754230006618,0.55,3497.3,3496.9,4.366]
[1754230006816,0.9479,3497.2,3496.9,4.366]
[1754230007226,0.9479,3497.1,3496.9,4.366]
[1754230007515,0.55,3497.6,3496.9,4.366]
[1754230007688,0.55,3497.4,3496.9,4.366]
[1754230008100,0.9479,3497.3,3496.9,4.366]
[1754230008301,0.001,3497.8,3496.9,4.366]
[1754230008495,0.001,3497.8,3496.8,0.002]
[1754230008496,30.0,3497.1,3496.8,0.002]
[1754230008688,40.0,3496.9,3496.8,4.368]
[1754230008888,0.9479,3496.9,3496.8,4.368]
[1754230009411,31.4979,3496.9,3496.8,0.002]
[1754230012008,30.55,3496.9,3496.8,0.002]
[1754230012316,0.9479,3497.5,3496.8,0.002]
[1754230012564,10.55,3497.2,3496.8,0.4979]
[1754230012733,1.0365,3497.2,3496.8,0.4979]
[1754230013053,3.0,3497.3,3496.9,0.4959]
[1754230013235,30.0,3497.2,3497.0,0.4959]
[1754230013439,0.55,3497.4,3497.0,0.4959]
[1754230013755,0.55,3497.4,3496.9,4.367]
[1754230013932,0.55,3497.4,3497.1,0.4959]
[1754230014138,0.9479,3497.5,3497.1,0.4959]
[1754230014363,3.0,3497.3,3497.1,0.4959]
[1754230014731,30.0,3497.4,3497.1,0.4959]
[1754230014936,0.001,3497.8,3496.9,4.367]
[1754230015169,0.001,3497.8,3497.0,0.9279]
[1754230015331,3.0,3497.6,3497.0,0.9279]
[1754230015537,3.0,3497.6,3497.1,0.4959]
[1754230016058,3.0,3497.6,3496.9,20.4178847]
[1754230016267,30.0,3497.7,3496.9,20.4178847]
[1754230016268,30.0,3497.7,3497.2,0.4959]
[1754230016444,30.0,3497.7,3497.3,4.367]
[1754230016651,3.0,3497.6,3497.4,0.4959]
[1754230016853,0.001,3497.8,3497.5,0.9279]
[1754230017353,0.001,3497.8,3497.3,4.367]
[1754230017750,0.001,3497.8,3497.4,0.9279]
[1754230017978,0.001,3497.8,3497.4,16.9787847]
[1754230018179,0.001,3497.8,3497.4,16.0508847]
[1754230018380,0.001,3497.8,3497.5,0.9279]
[1754230018782,0.001,3497.8,3497.6,0.485]
[1754230019153,0.001,3497.8,3497.7,0.485]
[1754230019913,0.001,3497.8,3497.7,4.852]
[1754230020565,0.001,3497.8,3497.7,4.367]
[1754230021287,0.001,3497.8,3497.7,5.293]
[1754230023165,0.001,3497.8,3497.7,5.32159021]
[1754230023362,0.001,3497.8,3497.7,5.293]
[1754230025669,0.001,3497.8,3497.7,8.694]
[1754230026067,0.001,3497.8,3497.7,3.401]
[1754230026267,0.001,3498.2,3497.7,20.44547491]
[1754230026474,0.001,3498.2,3498.1,16.0508847]
[1754230026778,0.001,3498.2,3498.1,20.4168847]
[1754230026973,0.001,3498.2,3498.1,21.3428847]
[1754230027194,0.001,3498.2,3498.1,21.4574937]
[1754230030100,0.001,3498.2,3498.1,21.0164937]
[1754230030268,0.001,3498.2,3498.1,4.480609]
[1754230030470,0.9637,3498.2,3498.1,4.480609]
[1754230030688,0.001,3498.2,3498.1,4.366]
[1754230031926,0.9637,3498.2,3497.6,16.0508847]
[1754230032092,0.9637,3498.2,3497.7,4.365]
[1754230032292,0.9627,3498.1,3497.6,16.0508847]
[1754230032597,0.9627,3498.0,3497.7,4.365]
[1754230032794,0.4728,3498.0,3497.6,16.0508847]
[1754230033000,0.4899,3497.9,3497.8,4.365]
[1754230034021,0.4728,3498.0,3497.8,4.365]
[1754230034326,0.001,3498.2,3497.8,4.365]
[1754230034537,0.001,3498.2,3498.1,16.0508847]
[1754230034704,0.001,3498.2,3498.1,20.4158847]
[1754230035526,0.001,3498.2,3498.1,20.9008847]
[1754230036727,0.001,3498.2,3498.1,4.85]
[1754230037232,0.001,3498.2,3498.1,4.365]
[1754230040094,0.001,3498.2,3498.1,4.85]
[1754230040300,0.001,3498.2,3498.1,5.291]
[1754230041731,0.001,3498.2,3498.1,5.405609]
[1754230041934,0.001,3498.2,3498.1,5.548809]
[1754230043732,3.0,3499.8,3498.1,5.548809]
[1754230043896,3.0,3499.4,3498.1,5.548809]
[1754230044102,3.0,3500.1,3498.2,0.441]
[1754230044302,40.0,3499.8,3498.3,4.365]
[1754230044504,30.0,3499.8,3498.3,4.365]
[1754230044703,30.0,3499.8,3498.4,0.441]
[1754230044902,3.0,3499.4,3498.5,4.365]
[1754230045133,3.0,3499.6,3498.5,4.365]
[1754230045316,3.0,3500.0,3498.5,4.365]
[1754230045512,3.0,3499.6,3498.5,4.365]
[1754230045704,3.0,3499.4,3498.5,4.365]
[1754230045904,0.4728,3499.3,3498.5,4.365]
[1754230047931,0.4728,3499.3,3498.5,4.806]
[1754230049207,3.55,3499.8,3498.5,4.806]
[1754230049208,3.4537,3499.6,3498.5,4.365]
[1754230049409,30.0,3499.4,3498.6,0.48018286]
[1754230049704,3.4537,3499.6,3498.6,0.48018286]
[1754230049705,0.4537,3499.6,3498.6,0.48018286]
[1754230049907,0.55,3499.8,3498.6,0.48018286]
[1754230050103,3.0,3499.7,3498.6,0.48018286]
[1754230050306,0.001,3500.2,3498.7,0.464]
[1754230050539,30.0,3500.0,3498.8,0.4516]
[1754230050741,3.0,3499.9,3498.9,4.365]
[1754230050942,3.0,3499.9,3499.0,0.4516]
[1754230051146,0.4537,3500.1,3499.0,0.4516]
[1754230051461,30.0,3500.1,3499.0,0.4516]
[1754230051742,30.0,3499.9,3499.1,0.02857877]
[1754230051945,30.0,3500.1,3498.9,4.365]
[1754230052243,30.0,3500.1,3499.0,0.48017959]
[1754230052407,30.0,3500.1,3499.0,0.4516]
[1754230052605,2.86824707,3500.1,3499.0,0.4516]
[1754230052838,30.0,3500.1,3499.0,0.4516]
[1754230053048,0.001,3500.2,3499.1,0.49257877]
[1754230053247,0.001,3500.2,3499.2,0.48017796]
[1754230054022,0.001,3500.2,3499.2,0.4516]
[1754230054409,0.4547,3500.2,3499.2,0.4516]
[1754230054628,30.02630117,3500.1,3499.1,0.859295]
[1754230054916,30.0,3499.9,3499.2,4.364]
[1754230055240,0.4537,3500.0,3499.2,4.364]
[1754230055548,30.0,3499.9,3499.2,4.364]
[1754230056331,0.4537,3500.0,3499.2,4.364]
[1754230056546,0.4537,3500.0,3499.3,4.364]
[1754230056547,3.0,3499.8,3499.3,4.364]
[1754230056750,30.0,3499.6,3499.3,4.364]
[1754230057046,0.4537,3499.5,3499.3,4.364]
[1754230057223,30.0,3499.4,3499.3,4.364]
[1754230057407,30.0,3499.3,3498.6,3.401]
[1754230057611,30.0,3499.3,3498.6,4.366]
[1754230057612,30.4537,3499.3,3498.6,4.366]
[1754230057811,0.4537,3499.2,3498.6,4.366]
[1754230059749,3.0,3499.5,3498.8,16.03962177]
[1754230059950,40.0,3499.4,3498.8,16.03962177]
[1754230060250,30.0,3499.4,3498.8,16.03962177]
[1754230062354,40.0,3499.2,3498.9,4.365]
[1754230062533,30.0,3499.2,3498.9,4.365]
[1754230062859,0.4537,3499.1,3498.9,4.365]
[1754230063230,0.4537,3499.1,3498.4,16.89912877]
[1754230063421,0.4537,3499.1,3498.2,0.4516]
[1754230063422,0.4537,3499.1,3498.5,4.364]
[1754230063617,0.4537,3499.1,3498.6,4.364]
[1754230063843,0.4537,3499.0,3498.7,4.364]
[1754230064150,30.0,3499.4,3498.7,4.364]
[1754230064450,30.0,3498.8,3498.6,4.364]
[1754230064657,0.4537,3498.8,3498.5,4.364]
[1754230064854,30.0,3498.7,3498.5,4.364]
[1754230065356,30.0,3498.9,3498.5,4.364]
[1754230065524,30.0,3499.0,3498.5,4.8156]
[1754230066150,30.0,3499.0,3498.5,4.364]
[1754230067121,0.4537,3498.9,3498.5,4.366]
[1754230067350,0.4537,3498.8,3498.5,4.366]
[1754230067939,3.0,3499.1,3498.5,4.366]
[1754230068126,30.0,3499.0,3498.5,4.366]
[1754230068527,0.4537,3499.3,3498.6,4.8156]
[1754230068740,0.93613,3499.3,3498.6,4.8156]
[1754230068938,3.0,3499.1,3498.6,4.8156]
[1754230069330,0.93613,3499.3,3498.7,0.464]
[1754230069766,0.48243,3499.3,3498.6,4.364]
[1754230069933,3.0,3499.0,3498.5,4.366]
[1754230070133,30.4537,3498.9,3498.5,4.366]
[1754230070362,0.4537,3498.8,3498.5,4.366]
[1754230071076,30.914,3498.7,3498.5,0.002]
[1754230071275,30.914,3498.7,3498.5,4.366]
[1754230071276,30.0,3498.6,3498.5,4.366]
[1754230071458,0.914,3498.6,3498.5,4.366]
[1754230071861,0.4537,3498.6,3498.5,4.366]
[1754230072035,30.0,3498.7,3498.5,4.366]
[1754230073377,0.914,3499.4,3498.6,0.9156]
[1754230073537,3.0,3499.2,3498.7,0.464]
[1754230073737,3.0,3499.2,3498.8,0.464]
[1754230073937,3.0,3499.0,3498.8,0.464]
[1754230074137,3.0,3499.0,3498.6,4.8166]
[1754230074138,3.0,3499.0,3498.6,5.2806]
[1754230074363,3.4537,3499.2,3498.7,0.464]
[1754230074638,30.0,3499.0,3498.7,0.464]
[1754230077171,30.0,3499.0,3498.6,4.365]
[1754230077342,30.4537,3499.0,3498.6,4.365]
[1754230077543,0.4537,3499.0,3498.6,4.365]
[1754230079045,30.4443,3498.9,3498.5,0.002]
[1754230079246,30.0,3498.8,3498.5,0.002]
[1754230079571,30.0,3498.8,3498.5,0.4985]
[1754230079775,30.0,3498.9,3498.6,0.4965]
[1754230079941,30.0,3499.0,3498.6,0.4965]
[1754230080455,30.0,3498.9,3498.6,0.4965]
[1754230081458,30.0,3498.9,3498.5,0.002]
[1754230081857,30.0,3498.9,3498.6,0.4965]
[1754230082058,30.0,3498.9,3498.7,0.4965]
[1754230082254,3.0,3499.0,3498.7,0.9316]
[1754230082460,3.0,3499.2,3498.8,0.4351]
[1754230082660,3.83025,3499.2,3498.8,0.9316]
[1754230082974,3.83025,3499.2,3498.9,0.9316]
[1754230083179,3.0,3499.1,3499.0,0.4965]
[1754230083354,3.0,3499.1,3498.7,0.4965]
[1754230083951,3.0,3499.1,3498.8,0.9316]
[1754230084164,3.0,3499.1,3498.9,0.4965]
[1754230084370,13.0,3499.2,3498.9,0.4965]
[1754230084686,4.83025,3499.2,3498.9,0.4965]
[1754230084887,10.0,3499.9,3499.0,0.9316]
[1754230085091,3.0,3499.5,3499.0,0.4351]
[1754230085287,3.0,3499.7,3499.1,0.4965]
[1754230085646,3.0,3499.5,3499.1,0.4965]
[1754230086074,3.0,3499.5,3499.1,0.4351]
[1754230086349,4.50603973,3499.5,3498.9,0.4965]
[1754230086660,0.4443,3499.4,3498.9,0.4965]
[1754230087542,0.4443,3499.4,3499.0,0.4965]
[1754230087894,0.4443,3499.4,3498.5,0.002]
[1754230087895,3.0,3499.1,3498.9,4.364]
[1754230088189,30.0,3498.9,3498.8,4.364]
[1754230088409,32.86824707,3498.9,3498.5,3.403]
[1754230088553,40.0,3498.6,3498.5,0.002]
[1754230088760,30.0,3498.7,3498.5,0.002]
[1754230089066,0.96380117,3498.6,3498.5,0.002]
[1754230089264,32.64700599,3498.6,3498.5,0.002]
[1754230089487,32.62070482,3498.6,3498.5,0.002]
[1754230091887,31.68320482,3498.6,3498.5,0.002]
[1754230092112,3.0,3498.7,3498.5,0.9336]
[1754230092310,3.0,3498.9,3498.5,0.4371]
[1754230092498,3.0,3498.9,3498.6,0.4965]
[1754230093193,3.0,3498.7,3498.6,0.4965]
[1754230093923,0.9375,3499.6,3498.6,0.9316]
[1754230094216,4.364,3499.4,3498.7,0.9316]
[1754230094410,3.0,3499.3,3498.6,4.364]
[1754230094569,3.0,3499.3,3498.8,0.9316]
[1754230094764,3.0,3499.3,3498.6,4.364]
[1754230094960,3.0,3499.3,3498.9,0.9316]
[1754230095159,4.364,3499.5,3498.9,0.9316]
[1754230095405,3.0,3499.4,3499.0,0.4965]
[1754230095783,3.0,3499.4,3499.1,0.4351]
[1754230095964,4.364,3499.5,3499.2,0.9316]
[1754230095965,3.0,3499.5,3499.2,0.9316]
[1754230096165,43.0,3499.4,3499.3,0.4965]
[1754230096383,3.0,3499.5,3498.8,16.03962177]
[1754230096605,3.0,3499.7,3498.8,16.03962177]
[1754230096811,3.14885,3499.8,3498.6,4.364]
[1754230097008,3.0,3499.5,3498.9,0.9316]
[1754230097169,3.0,3499.3,3498.7,4.364]
[1754230097370,30.0,3499.1,3498.7,4.364]
[1754230097606,30.0,3499.2,3498.7,4.364]
[1754230097918,30.0,3499.2,3498.8,0.4965]
[1754230098299,30.0,3499.2,3498.9,0.9316]
[1754230098598,30.0,3499.2,3499.0,0.4965]
[1754230098768,30.0,3499.2,3498.9,0.4351]
[1754230098975,13.0,3499.4,3499.0,0.9316]
[1754230099204,3.0,3499.6,3499.1,0.9316]
[1754230099384,3.0,3499.4,3499.1,0.9316]
[1754230099817,3.0,3499.4,3499.2,0.4965]
[1754230100370,3.0,3499.6,3499.3,0.4965]
[1754230101322,30.0,3499.8,3499.4,0.4965]
[1754230101620,3.0,3499.6,3499.4,0.4965]
[1754230101799,4.914,3499.9,3499.4,0.4965]
[1754230102124,30.0,3499.8,3499.4,0.4965]
[1754230103203,3.0,3499.8,3499.4,0.4965]
[1754230103587,3.0,3499.6,3499.4,0.4965]
[1754230104015,30.0,3499.5,3498.7,0.4965]
[1754230104184,40.0,3499.3,3498.7,0.4965]
[1754230104386,30.0,3499.1,3498.6,4.364]
[1754230105022,30.0,3499.1,3498.6,4.8605]
[1754230105518,30.0,3499.2,3498.6,4.8605]
[1754230105819,30.0,3499.2,3498.7,0.4965]
[1754230106191,3.9375,3499.2,3498.7,0.4965]
[1754230106395,30.0,3499.1,3498.7,0.4965]
[1754230108623,30.0,3499.1,3498.8,0.473]
[1754230108922,30.0,3499.1,3498.9,0.473]
[1754230109691,3.0,3499.3,3499.0,0.9405]
[1754230109893,30.0,3499.3,3499.1,0.473]
[1754230110117,3.55,3499.5,3499.2,0.473]
[1754230110448,11.47213448,3499.4,3498.9,0.473]
[1754230110751,30.0,3499.4,3499.0,0.473]
[1754230111406,30.0,3499.6,3499.1,0.9405]
[1754230111644,3.0,3499.6,3499.2,0.9405]
[1754230111860,3.0,3499.6,3499.3,0.9405]
[1754230112015,10.0,3499.9,3499.4,0.9405]
[1754230112016,30.0,3499.7,3499.4,0.9405]
[1754230112343,30.0,3500.0,3499.5,0.9405]
[1754230112666,30.0,3500.0,3499.6,0.9405]
[1754230112936,30.0,3500.0,3499.7,0.473]
[1754230113100,30.0,3500.0,3499.8,0.473]
[1754230115051,30.0,3500.0,3499.1,0.859353]
[1754230115227,30.0,3500.0,3499.1,4.836]
[1754230115228,40.0,3499.8,3499.1,4.836]
[1754230115432,0.4288,3499.7,3499.1,4.836]
[1754230115924,0.45510117,3499.7,3499.1,4.836]
[1754230116331,0.45510117,3499.7,3499.2,4.363]
[1754230116555,0.4288,3499.7,3499.2,4.363]
[1754230116721,0.4288,3499.7,3499.2,4.836]
[1754230117163,30.0,3499.7,3499.3,0.473]
[1754230117374,30.0,3499.7,3499.4,0.473]
[1754230117735,30.0,3499.7,3499.5,0.473]
[1754230117958,30.0,3499.7,3499.2,4.8305]
[1754230118461,30.0,3499.7,3499.3,0.473]
[1754230118656,30.0,3499.7,3499.3,0.4675]
[1754230118860,3.0,3499.9,3499.4,0.473]
[1754230119156,30.0,3500.0,3499.5,0.4675]
[1754230119364,30.0,3500.0,3499.6,0.9405]
[1754230119550,30.0,3500.0,3499.6,0.4675]
[1754230119753,10.001,3500.1,3499.7,0.473]
[1754230119952,0.001,3500.1,3499.8,0.473]
[1754230120254,0.001,3500.1,3499.9,0.473]
[1754230120637,3.001,3500.1,3499.9,0.9405]
[1754230120831,0.001,3500.1,3499.9,0.4675]
[1754230121062,0.001,3500.1,3500.0,0.473]
[1754230123762,0.001,3500.1,3499.8,0.473]
[1754230124362,0.001,3500.1,3499.9,0.4675]
[1754230124749,0.001,3500.1,3500.0,0.473]
[1754230127144,0.001,3500.1,3500.0,0.9405]
[1754230129798,0.001,3500.1,3500.0,0.473]
[1754230130489,0.001,3500.1,3499.3,0.859288]
[1754230130684,0.49760117,3500.1,3499.4,4.835]
[1754230130895,0.4713,3500.1,3499.4,4.362]
[1754230131200,0.001,3500.1,3499.5,0.473]
[1754230131602,0.001,3500.1,3499.6,0.4675]
[1754230131963,0.001,3500.1,3499.7,0.473]
[1754230132495,0.001,3500.1,3499.8,0.4675]
[1754230132861,0.001,3500.1,3499.9,0.9405]
[1754230133304,0.001,3500.1,3499.4,20.39190532]
[1754230133504,0.001,3500.1,3500.0,0.9405]
[1754230134364,0.001,3500.1,3500.0,0.473]
[1754230134570,0.001,3500.1,3500.0,0.9405]
[1754230140471,0.001,3500.1,3500.0,0.96907142]
[1754230140670,0.001,3500.1,3500.0,0.9405]
[1754230142396,0.001,3500.1,3500.0,5.3005]
[1754230144038,0.001,3500.1,3500.0,8.7015]
[1754230144946,0.001,3500.1,3500.0,3.401]
[1754230145103,0.001,3500.1,3500.0,7.761]
[1754230145704,0.4729,3500.1,3500.0,4.36]
[1754230146017,0.001,3500.1,3500.0,4.36]
[1754230146341,0.001,3500.1,3499.6,0.4937]
[1754230146512,0.966,3500.0,3499.7,4.36]
[1754230146720,0.001,3500.1,3499.7,4.36]
[1754230147246,0.001,3500.1,3499.8,0.4937]
[1754230147403,0.001,3500.1,3499.7,4.8537]
[1754230149111,0.001,3500.1,3499.8,0.4937]
[1754230151066,0.001,3500.1,3499.3,3.8947]
[1754230151240,0.966,3500.0,3499.4,4.36]
[1754230151411,0.966,3499.9,3499.4,4.36]
[1754230151608,0.966,3499.9,3499.4,4.8537]
[1754230152153,0.4941,3499.9,3499.6,0.002]
[1754230152360,0.966,3499.8,3499.7,4.36]
[1754230152559,0.55,3499.7,3499.6,0.002]
[1754230152718,1.69390117,3499.7,3499.6,0.002]
[1754230153659,34.6676,3499.7,3499.6,0.002]
[1754230156223,50.69750532,3499.7,3499.6,0.002]
[1754230157740,34.6676,3499.7,3499.6,0.002]
[1754230162532,39.0286,3499.7,3499.6,0.002]
[1754230164871,39.55161238,3499.7,3499.6,0.002]
[1754230166233,41.03287515,3499.7,3499.6,0.002]
[1754230166748,41.03287515,3499.7,3498.1,0.4937]
[1754230166749,2.271,3499.5,3498.1,0.4537]
[1754230166942,3.55,3499.1,3498.1,0.4537]
[1754230167171,0.55,3498.5,3498.1,0.4537]
[1754230167375,0.55,3498.5,3496.6,0.1452]
[1754230167376,0.55,3498.1,3496.6,0.1452]
[1754230167558,30.0,3497.9,3496.7,0.4537]
[1754230167857,30.0,3498.0,3496.7,0.4537]
[1754230168057,30.0,3497.9,3497.5,0.4511]
[1754230168850,30.0,3497.9,3497.6,0.4992]
[1754230169291,0.02630117,3497.8,3497.7,0.4643]
[1754230169638,0.02630117,3497.8,3497.7,0.9635]
[1754230170490,30.0,3497.8,3497.7,0.9635]
[1754230171237,3.55,3497.5,3497.1,0.4992]
[1754230171442,0.55,3497.5,3497.0,6.871]
[1754230171642,0.55,3497.6,3497.4,0.4663]
[1754230171847,0.55,3497.6,3497.5,0.4643]
[1754230172055,0.55,3497.6,3497.5,0.9635]
[1754230174363,2.4327994,3497.6,3497.5,0.9635]
[1754230177068,4.362,3498.1,3497.5,0.9635]
[1754230177266,40.0,3497.9,3497.6,0.9635]
[1754230177583,4.361,3498.1,3497.4,0.002]
[1754230177784,30.02630117,3498.0,3497.4,0.002]
[1754230177963,3.0,3497.8,3497.4,0.002]
[1754230178288,30.0,3497.6,3497.5,0.4992]
[1754230178454,30.0,3497.7,3497.5,0.9635]
[1754230178657,3.0,3497.8,3497.4,0.002]
[1754230178658,3.55,3497.8,3497.6,0.9635]
[1754230178853,3.55,3497.8,3497.4,0.002]
[1754230179182,33.0,3497.8,3497.7,0.9635]
[1754230179386,3.0,3497.8,3497.7,0.9635]
[1754230182203,0.55,3498.1,3497.7,0.9635]
[1754230182402,30.0,3498.0,3497.8,0.9635]
[1754230182699,30.0,3498.0,3497.4,0.002]
[1754230182700,33.55,3498.0,3497.9,0.9635]
[1754230182907,33.55,3498.0,3497.2,16.05318058]
[1754230182908,3.55,3498.0,3497.2,16.02068058]
[1754230183376,16.05318058,3499.8,3497.2,16.02068058]
[1754230183377,10.0,3498.5,3497.2,16.02068058]
[1754230183577,33.0,3498.7,3497.6,16.05318058]
[1754230183800,3.0,3498.5,3497.7,4.361]
[1754230184182,0.55,3498.6,3497.7,4.361]
[1754230184781,3.55,3498.7,3497.7,4.361]
[1754230184974,0.55,3498.7,3497.8,0.9635]
[1754230185174,3.55,3498.7,3497.7,4.361]
[1754230185386,3.55,3498.7,3497.9,0.9635]
[1754230185569,30.0,3498.8,3497.7,4.361]
[1754230185775,0.55,3498.7,3498.0,0.9635]